bitfinex/quotes_SOLUSD_20250815
["timestamp","ask_amount","ask_price","bid_price","bid_amount"]
[1755247451790,4.08762401,197.57,197.54,0.03]
[1755247451995,3.40762401,197.56,197.54,0.03]
[1755247452210,0.68,197.57,197.54,0.03]
[1755247452377,3.4077006,197.56,197.54,0.03]
[1755247452698,0.68,197.57,197.54,0.03]
[1755247452898,3.40785039,197.56,197.54,0.03]
[1755247453198,0.68,197.57,197.54,0.03]
[1755247453503,3.40793089,197.56,197.54,0.03]
[1755247453697,0.68,197.57,197.54,0.69]
[1755247454003,3.40810747,197.56,197.54,0.69]
[1755247454225,0.06,197.61,197.55,8.7538914]
[1755247454508,3.40789564,197.6,197.58,8.0938914]
[1755247454673,3.40789564,197.59,197.56,5.06175339]
[1755247454870,0.06,197.61,197.59,0.66]
[1755247456185,0.06,197.61,197.6,8.0938914]
[1755247456595,3.46649729,197.61,197.6,8.0938914]
[1755247457180,0.06,197.61,197.6,8.7538914]
[1755247457908,0.06,197.61,197.6,13.81462014]
[1755247459379,0.74,197.61,197.59,26.0]
[1755247459786,4.08486929,197.6,197.57,28.02701]
[1755247460000,12.17893935,197.59,197.57,2.02701]
[1755247460198,12.17893935,197.59,197.54,0.03]
[1755247460199,4.08538406,197.58,197.54,0.03]
[1755247460382,0.68,197.58,197.54,2.057318]
[1755247460587,0.68,197.57,197.54,2.057318]
[1755247460795,0.68,197.57,197.55,5.06196203]
[1755247461382,0.68,197.6,197.55,13.81585343]
[1755247461590,3.40540617,197.59,197.56,0.66]
[1755247461799,3.40540617,197.58,197.56,0.66]
[1755247462002,0.68,197.6,197.56,0.66]
[1755247462229,3.40540711,197.59,197.56,0.66]
[1755247462387,3.40540711,197.58,197.56,5.72153817]
[1755247462594,0.68,197.6,197.56,5.72153817]
[1755247462789,3.40541439,197.59,197.56,5.72153817]
[1755247463087,0.68,197.6,197.56,5.72153817]
[1755247463301,3.40554772,197.59,197.56,5.72153817]
[1755247463501,0.68,197.6,197.56,5.72153817]
[1755247463815,3.40552088,197.59,197.56,5.72153817]
[1755247464013,0.68,197.6,197.56,5.72153817]
[1755247464188,0.06,197.61,197.59,8.0938914]
[1755247464389,0.06,197.61,197.6,8.7538914]
[1755247465210,0.06,197.61,197.6,8.0938914]
[1755247465594,0.06,197.61,197.6,13.15462014]
[1755247466613,0.06,197.61,197.6,13.81462014]
[1755247468411,0.06,197.61,197.6,5.72072874]
[1755247468623,0.06,197.61,197.6,13.81462014]
[1755247469497,0.06,197.61,197.6,13.15462014]
[1755247470616,0.74,197.61,197.6,13.15462014]
[1755247470814,0.06,197.61,197.6,13.15462014]
[1755247471816,0.06,197.61,197.59,7.08783864]
[1755247471999,0.66,197.6,197.59,7.08783864]
[1755247472626,0.66,197.6,197.57,5.06124534]
[1755247473306,0.66,197.59,197.57,5.06124534]
[1755247473923,0.66,197.58,197.56,5.06172373]
[1755247474306,0.66,197.57,197.56,5.06172373]
[1755247474503,4.06487426,197.59,197.56,5.06172373]
[1755247474736,0.66,197.59,197.56,5.06172373]
[1755247474899,0.66,197.58,197.55,5.06200961]
[1755247476796,0.66,197.58,197.57,0.03]
[1755247477000,12.1592555,197.58,197.57,0.03]
[1755247477401,4.0653641,197.58,197.57,0.03]
[1755247477611,3.4053641,197.58,197.57,0.03]
[1755247478012,4.0653641,197.58,197.57,0.03]
[1755247478926,3.4053641,197.58,197.57,0.03]
[1755247479502,3.4053641,197.58,197.57,8.1238914]
[1755247479734,3.4053641,197.58,197.57,8.8138914]
[1755247480610,3.4053641,197.58,197.57,13.87538859]
[1755247480825,3.4053641,197.58,197.57,5.78149719]
[1755247482738,0.06,197.61,197.57,13.87538859]
[1755247482944,3.40561098,197.6,197.58,8.7838914]
[1755247483137,0.06,197.61,197.59,0.69]
[1755247483335,3.40572225,197.6,197.59,0.69]
[1755247484033,0.06,197.61,197.58,8.0938914]
[1755247484342,0.72,197.61,197.59,5.06098486]
[1755247486019,0.06,197.61,197.59,5.06098486]
[1755247486450,0.06,197.61,197.59,5.75098486]
[1755247487140,0.06,197.61,197.59,13.84487626]
[1755247487645,0.06,197.61,197.6,8.7838914]
[1755247488031,0.06,197.61,197.6,8.0938914]
[1755247488427,0.06,197.61,197.6,13.84462014]
[1755247488837,0.06,197.61,197.6,13.15462014]
[1755247489036,0.72,197.61,197.59,13.15482961]
[1755247489235,0.66,197.6,197.57,13.18516766]
[1755247490753,0.66,197.6,197.57,13.87516766]
[1755247490932,0.06,197.61,197.59,5.06098486]
[1755247491134,0.72,197.61,197.59,5.06098486]
[1755247492859,0.72,197.61,197.58,5.06124101]
[1755247493052,0.72,197.61,197.58,13.15513241]
[1755247493755,4.0662623,197.6,197.59,0.03]
[1755247493954,3.4062623,197.6,197.59,0.03]
[1755247496657,3.4062623,197.6,197.59,13.18487626]
[1755247497236,3.4062623,197.6,197.59,0.03]
[1755247497838,3.4062623,197.6,197.59,5.09098486]
[1755247500765,45.20654162,197.6,197.59,0.03]
[1755247500953,48.99373075,197.6,197.59,0.03]
[1755247501149,41.10621557,197.59,197.57,0.03]
[1755247501360,22.81921758,197.58,197.57,0.03]
[1755247501553,23.47921758,197.58,197.57,0.03]
[1755247501870,8.37300201,197.58,197.57,0.03]
[1755247502739,58.54045859,197.58,197.57,0.03]
[1755247502935,47.69424465,197.58,197.57,0.03]
[1755247503156,43.43424302,197.58,197.57,0.03]
[1755247503356,47.69424465,197.58,197.57,0.03]
[1755247503565,43.43424302,197.58,197.57,0.03]
[1755247503765,47.69424465,197.58,197.57,0.03]
[1755247504158,47.69042744,197.58,197.57,0.03]
[1755247504341,62.79664301,197.58,197.57,0.03]
[1755247504946,58.54045859,197.58,197.57,0.03]
[1755247505276,26.0,197.56,197.55,0.03]
[1755247505441,98.75345143,197.56,197.55,0.03]
[1755247505642,99.41345143,197.56,197.55,0.03]
[1755247506171,104.47520482,197.56,197.55,0.03]
[1755247507282,74.47520482,197.56,197.55,0.03]
[1755247507479,74.9947554,197.56,197.55,0.03]
[1755247508185,90.10097097,197.56,197.55,0.03]
[1755247508985,120.10097097,197.56,197.55,0.03]
[1755247509176,119.58142039,197.56,197.55,0.03]
[1755247511193,119.57032255,197.56,197.55,0.03]
[1755247511399,121.59877155,197.56,197.55,0.03]
[1755247511973,89.57032255,197.56,197.55,0.03]
[1755247512175,90.08987313,197.56,197.55,0.03]
[1755247512895,92.11832213,197.56,197.55,0.03]
[1755247513884,92.11832213,197.56,197.55,1e-08]
[1755247514188,92.11832213,197.56,197.54,1e-08]
[1755247514386,7.84235359,197.55,197.54,1e-08]
[1755247514810,30.03923377,197.55,197.54,1e-08]
[1755247515370,60.03923377,197.55,197.53,1e-08]
[1755247515573,69.92190417,197.54,197.53,1e-08]
[1755247515869,85.02811974,197.54,197.53,1e-08]
[1755247516478,115.02811974,197.54,197.53,1e-08]
[1755247516679,116.53732716,197.54,197.53,1e-08]
[1755247517086,121.59959303,197.54,197.53,1e-08]
[1755247518384,117.82350174,197.54,197.53,1e-08]
[1755247519919,91.82350174,197.54,197.53,1e-08]
[1755247520113,96.11300032,197.54,197.53,1e-08]
[1755247522109,92.34305232,197.54,197.53,1e-08]
[1755247522905,96.11113706,197.54,197.53,1e-08]
[1755247523394,92.34305232,197.54,197.53,1e-08]
[1755247523597,56.78305232,197.54,197.53,1e-08]
[1755247523803,92.34305232,197.54,197.53,1e-08]
[1755247525124,91.68305232,197.54,197.53,1e-08]
[1755247525301,89.65429432,197.54,197.53,1e-08]
[1755247525619,85.65429432,197.54,197.53,1e-08]
[1755247526018,86.31429432,197.54,197.53,1e-08]
[1755247527126,85.65429432,197.54,197.53,1e-08]
[1755247528728,115.65429432,197.54,197.53,1e-08]
[1755247528917,115.13474374,197.54,197.53,1e-08]
[1755247529428,115.79474374,197.54,197.53,1e-08]
[1755247529619,119.56145654,197.54,197.53,1e-08]
[1755247529849,119.56145654,197.54,197.52,0.03]
[1755247529850,41.10621557,197.52,197.51,0.03]
[1755247530025,110.59202845,197.52,197.51,0.03]
[1755247530198,110.73247787,197.52,197.51,0.03]
[1755247530544,112.76144187,197.52,197.51,0.03]
[1755247530897,117.82422032,197.52,197.51,0.03]
[1755247531119,121.59117436,197.52,197.51,0.03]
[1755247532213,121.59117436,197.52,197.51,1e-08]
[1755247532410,121.59117436,197.52,197.5,0.03]
[1755247532623,189.67410012,197.51,197.5,1e-08]
[1755247532940,189.15454954,197.51,197.5,1e-08]
[1755247533105,191.18371854,197.51,197.5,1e-08]
[1755247533719,196.24675332,197.51,197.5,1e-08]
[1755247535136,191.99163569,197.51,197.49,0.03]
[1755247535325,59.07898249,197.5,197.49,0.03]
[1755247535648,88.35898249,197.5,197.49,0.03]
[1755247536151,88.35898249,197.5,197.49,0.69]
[1755247536647,93.42227362,197.5,197.49,0.03]
[1755247538022,94.14227362,197.5,197.49,0.03]
[1755247538414,98.38150521,197.5,197.49,0.03]
[1755247538631,97.86195463,197.5,197.49,0.03]
[1755247539339,93.62272304,197.5,197.49,0.03]
[1755247539643,96.17154662,197.5,197.49,0.03]
[1755247541045,96.17154662,197.5,197.49,1e-08]
[1755247542142,41.10621557,197.49,197.47,0.03]
[1755247542347,78.27943191,197.49,197.47,0.03]
[1755247542641,78.27943191,197.49,197.48,1e-08]
[1755247542642,78.99943191,197.49,197.48,1e-08]
[1755247542838,81.02870391,197.49,197.48,1e-08]
[1755247543531,81.54825449,197.49,197.48,1e-08]
[1755247543945,81.55884842,197.49,197.48,1e-08]
[1755247544145,86.62239594,197.49,197.48,1e-08]
[1755247544442,60.62239594,197.49,197.47,0.03]
[1755247544632,60.62239594,197.49,197.43,0.66]
[1755247544633,26.0,197.46,197.43,0.66]
[1755247544833,62.62241661,197.45,197.43,0.66]
[1755247545050,22.29002584,197.44,197.43,0.66]
[1755247545245,15.10621557,197.43,197.41,0.69]
[1755247545445,39.48581288,197.42,197.41,0.03]
[1755247545655,62.62433079,197.42,197.41,0.03]
[1755247545858,58.3714906,197.42,197.41,0.03]
[1755247546042,54.59202845,197.42,197.41,0.03]
[1755247546249,93.4374541,197.42,197.41,0.03]
[1755247546767,95.4673441,197.42,197.41,0.03]
[1755247546933,96.1873441,197.42,197.41,1e-08]
[1755247547253,101.85735872,197.42,197.41,1e-08]
[1755247547430,101.33780814,197.42,197.41,1e-08]
[1755247547630,100.61780814,197.42,197.41,1e-08]
[1755247548142,101.33780814,197.42,197.41,1e-08]
[1755247548346,95.66779352,197.42,197.41,1e-08]
[1755247548651,101.84844089,197.42,197.41,1e-08]
[1755247548860,15.10621557,197.38,197.37,0.03]
[1755247549052,62.61237424,197.38,197.37,0.03]
[1755247549975,92.61237424,197.38,197.37,0.03]
[1755247550153,88.36627372,197.38,197.37,0.03]
[1755247550545,93.43264315,197.38,197.37,0.03]
[1755247550850,42.76642758,197.38,197.37,0.69]
[1755247551046,69.48581288,197.38,197.37,0.69]
[1755247551356,44.0197444,197.38,197.37,0.69]
[1755247553060,62.89531969,197.38,197.37,0.03]
[1755247553267,63.41487027,197.38,197.37,0.03]
[1755247553570,93.41487027,197.38,197.37,0.03]
[1755247554247,64.13487027,197.38,197.37,1e-08]
[1755247554648,63.41487027,197.38,197.37,1e-08]
[1755247554854,3.91292555,197.38,197.37,0.66000001]
[1755247555069,44.55929498,197.38,197.37,0.66000001]
[1755247557881,44.55929498,197.38,197.37,1e-08]
[1755247558645,74.55929498,197.38,197.37,1e-08]
[1755247558872,44.55929498,197.38,197.37,1e-08]
[1755247559269,44.55929498,197.38,197.37,0.66000001]
[1755247559464,44.55359668,197.38,197.37,0.66000001]
[1755247559952,44.55359668,197.38,197.37,1e-08]
[1755247560477,44.55359668,197.38,197.37,0.66000001]
[1755247561167,44.55359668,197.38,197.37,1e-08]
[1755247561366,59.65981225,197.38,197.37,1e-08]
[1755247561573,64.1422469,197.38,197.37,1e-08]
[1755247561875,94.1422469,197.38,197.37,1e-08]
[1755247562183,93.4222469,197.38,197.37,1e-08]
[1755247562552,93.42022655,197.38,197.37,1e-08]
[1755247562755,89.65981225,197.38,197.37,1e-08]
[1755247563278,89.65981225,197.38,197.37,0.70000001]
[1755247563476,33.90722725,197.38,197.37,0.70000001]
[1755247563668,66.09955058,197.38,197.37,0.70000001]
[1755247565879,36.09955058,197.38,197.37,0.70000001]
[1755247566885,41.16592001,197.38,197.37,0.70000001]
[1755247567782,41.16592001,197.38,197.37,1e-08]
[1755247568455,44.55431852,197.38,197.37,1e-08]
[1755247569579,45.27431852,197.38,197.37,1e-08]
[1755247569753,49.03866836,197.38,197.37,1e-08]
[1755247570380,64.14488393,197.38,197.37,1e-08]
[1755247571261,63.42488393,197.38,197.37,1e-08]
[1755247571462,39.46794909,197.38,197.37,0.70000001]
[1755247571977,69.46794909,197.38,197.37,0.70000001]
[1755247572559,66.07955058,197.38,197.37,0.70000001]
[1755247573003,36.07955058,197.38,197.37,0.70000001]
[1755247573481,40.62636943,197.38,197.37,0.70000001]
[1755247574191,44.02156997,197.38,197.37,0.70000001]
[1755247575086,44.02156997,197.38,197.37,1e-08]
[1755247575289,63.61997975,197.38,197.37,1e-08]
[1755247575586,15.10621557,197.37,197.36,1e-08]
[1755247575769,23.5131609,197.37,197.36,1e-08]
[1755247576976,27.85978703,197.37,197.36,1e-08]
[1755247577180,27.86178112,197.37,197.36,1e-08]
[1755247578996,57.86178112,197.37,197.36,1e-08]
[1755247581111,58.58178112,197.37,197.36,1e-08]
[1755247581296,57.86178112,197.37,197.36,1e-08]
[1755247583392,27.86178112,197.37,197.36,1e-08]
[1755247583877,28.58178112,197.37,197.36,1e-08]
[1755247584483,160.48178112,197.37,197.36,1e-08]
[1755247584684,159.96223054,197.37,197.36,1e-08]
[1755247585682,164.19682637,197.37,197.36,1e-08]
[1755247586380,194.19682637,197.37,197.36,1e-08]
[1755247586618,58.06223054,197.37,197.35,0.2]
[1755247586773,89.32882034,197.36,197.35,0.2]
[1755247586974,85.07515499,197.36,197.35,0.2]
[1755247587414,115.07515499,197.36,197.35,0.2]
[1755247587705,114.55560441,197.36,197.35,0.2]
[1755247587880,119.62248726,197.36,197.35,0.2]
[1755247588500,89.62248726,197.36,197.35,0.2]
[1755247588702,90.14203784,197.36,197.35,0.2]
[1755247589300,15.10621557,197.35,197.34,0.2]
[1755247589601,22.99560441,197.35,197.34,0.2]
[1755247589807,28.062744,197.35,197.34,0.2]
[1755247591104,28.022744,197.35,197.34,1e-08]
[1755247591302,35.71482236,197.35,197.34,1e-08]
[1755247591507,35.71482236,197.35,197.33,1e-08]
[1755247591508,65.72630328,197.35,197.33,1e-08]
[1755247591712,43.94042034,197.34,197.33,1e-08]
[1755247592524,73.94042034,197.34,197.33,1e-08]
[1755247593201,79.00781671,197.34,197.33,1e-08]
[1755247595922,81.03853171,197.34,197.33,1e-08]
[1755247597052,96.14474728,197.34,197.28,0.72]
[1755247597353,19.36146271,197.32,197.28,0.72]
[1755247597525,62.62188305,197.32,197.28,0.72]
[1755247597709,63.30188305,197.32,197.28,0.72]
[1755247598108,93.30188305,197.32,197.28,0.72]
[1755247598310,89.04663591,197.32,197.28,0.72]
[1755247599145,94.1145459,197.32,197.28,0.72]
[1755247599451,93.4345459,197.32,197.28,0.72]
[1755247600557,94.1145459,197.32,197.28,0.72]
[1755247602347,93.4345459,197.32,197.28,0.03]
[1755247602650,93.4345459,197.32,197.29,0.69]
[1755247603026,93.42734052,197.32,197.29,0.69]
[1755247603733,78.32112495,197.32,197.31,0.89]
[1755247604156,74.54266111,197.32,197.31,0.89]
[1755247604335,78.31721492,197.32,197.31,0.89]
[1755247604758,78.31721492,197.32,197.31,0.2]
[1755247604963,93.42343049,197.32,197.31,0.2]
[1755247605143,94.10343049,197.32,197.31,0.2]
[1755247607970,93.42343049,197.32,197.31,0.2]
[1755247609451,94.10343049,197.32,197.31,0.2]
[1755247609649,98.35867763,197.32,197.31,1e-08]
[1755247609860,97.83912705,197.32,197.31,1e-08]
[1755247613968,15.10621557,197.31,197.28,0.03]
[1755247614180,15.10621557,197.29,197.27,0.03]
[1755247614400,43.24930493,197.28,197.27,0.03]
[1755247614683,43.25090064,197.28,197.27,0.03]
[1755247615188,73.25090064,197.28,197.27,0.03]
[1755247615686,15.10621557,197.27,197.25,0.03]
[1755247615989,44.5442026,197.26,197.25,0.03]
[1755247616150,74.5442026,197.26,197.25,0.03]
[1755247618456,38.9842026,197.26,197.25,0.72]
[1755247618666,74.5442026,197.26,197.25,0.72]
[1755247619061,74.5442026,197.26,197.25,0.03]
[1755247620879,74.5442026,197.26,197.25,0.75]
[1755247621555,74.5442026,197.26,197.25,0.03]
[1755247622368,74.5442026,197.26,197.25,0.75]
[1755247623270,74.5442026,197.26,197.25,0.03]
[1755247623454,38.9842026,197.26,197.25,0.03]
[1755247623658,74.5442026,197.26,197.25,0.75]
[1755247624479,44.5442026,197.26,197.25,0.75]
[1755247628788,74.5442026,197.26,197.25,0.75]
[1755247631580,44.5442026,197.26,197.25,0.75]
[1755247632291,44.5442026,197.26,197.25,0.03]
[1755247632581,64.11922279,197.26,197.25,0.03]
[1755247634303,48.32300722,197.26,197.25,0.75]
[1755247634603,33.39520054,197.26,197.25,0.75]
[1755247634787,44.5442026,197.26,197.25,0.75]
[1755247636906,44.5442026,197.26,197.25,0.03]
[1755247637074,3.39520054,197.26,197.25,0.75]
[1755247637280,44.5442026,197.26,197.25,0.75]
[1755247637479,44.5442026,197.26,197.25,0.03]
[1755247638287,39.47475112,197.26,197.25,0.75]
[1755247641197,38.95520054,197.26,197.25,0.75]
[1755247642100,48.49897064,197.26,197.25,0.03]
[1755247642479,49.01852122,197.26,197.25,0.03]
[1755247642679,49.01870235,197.26,197.25,0.03]
[1755247643508,64.12491792,197.26,197.25,0.03]
[1755247644005,64.12481525,197.26,197.25,0.03]
[1755247645583,94.12481525,197.26,197.25,0.03]
[1755247646613,93.43481525,197.26,197.25,0.03]
[1755247646795,63.43481525,197.26,197.25,0.03]
[1755247647110,64.12481525,197.26,197.25,0.03]
[1755247647692,12.76859968,197.26,197.25,0.75]
[1755247647902,48.32859968,197.26,197.25,0.75]
[1755247648510,48.32859968,197.26,197.25,0.03]
[1755247651037,78.32859968,197.26,197.25,0.03]
[1755247651348,72.73959762,197.26,197.25,0.72]
[1755247651620,68.95520054,197.26,197.25,0.72]
[1755247652212,77.81138846,197.26,197.25,0.03]
[1755247652626,78.49138846,197.26,197.25,0.03]
[1755247653209,82.73954978,197.26,197.25,0.03]
[1755247653903,97.84576535,197.26,197.25,0.03]
[1755247654525,15.10621557,197.25,197.21,0.03]
[1755247654730,209.42190743,197.24,197.21,0.03]
[1755247655033,7.18193698,197.23,197.21,0.03]
[1755247655333,43.26183964,197.22,197.21,0.03]
[1755247655725,78.3323193,197.22,197.21,0.03]
[1755247658430,33.39520054,197.22,197.21,0.72]
[1755247658620,38.95520054,197.22,197.21,0.72]
[1755247663222,38.95520054,197.22,197.21,0.03]
[1755247663416,44.0256802,197.22,197.21,0.03]
[1755247664026,38.95520054,197.22,197.21,0.03]
[1755247667422,44.7056802,197.22,197.21,0.03]
[1755247669130,74.0256802,197.22,197.21,0.03]
[1755247669521,74.7056802,197.22,197.21,0.03]
[1755247678631,44.7056802,197.22,197.21,0.03]
[1755247681758,63.59756586,197.22,197.21,0.03]
[1755247682255,15.10621557,197.2,197.19,0.03]
[1755247682453,58.34663678,197.2,197.19,0.03]
[1755247682744,59.05663678,197.2,197.19,0.03]
[1755247682918,64.12763069,197.2,197.19,0.03]
[1755247683319,94.12763069,197.2,197.19,0.03]
[1755247684145,98.38276725,197.2,197.19,0.03]
[1755247684446,97.86321667,197.2,197.19,0.03]
[1755247686444,62.32321667,197.2,197.19,0.03]
[1755247686749,93.41763069,197.2,197.19,0.03]
[1755247687077,94.12763069,197.2,197.19,0.03]
[1755247687224,26.0,197.17,197.13,0.03]
[1755247687424,58.34663678,197.16,197.13,0.03]
[1755247687637,7.18087063,197.15,197.13,0.03]
[1755247687837,43.24042121,197.14,197.13,0.03]
[1755247688270,44.5272884,197.14,197.13,0.03]
[1755247688443,66.05955058,197.14,197.13,0.74]
[1755247688643,65.54,197.14,197.13,0.74]
[1755247688869,35.54,197.14,197.13,0.74]
[1755247689070,36.05955058,197.14,197.13,0.74]
[1755247691163,35.54,197.14,197.13,0.74]
[1755247692051,0.51955058,197.16,197.13,5.8127946]
[1755247692251,35.56,197.15,197.14,0.71]
[1755247692970,0.51955058,197.2,197.14,5.78248667]
[1755247693168,35.54,197.19,197.14,5.07248667]
[1755247693468,35.54,197.19,197.15,0.71]
[1755247695866,35.54,197.19,197.16,5.07202272]
[1755247696069,35.54,197.19,197.17,0.71]
[1755247697088,35.54,197.21,197.17,0.71]
[1755247697978,36.25,197.21,197.17,0.71]
[1755247698669,0.51955058,197.2,197.17,0.71]
[1755247698864,36.25,197.21,197.17,0.71]
[1755247699073,36.76955058,197.21,197.17,0.71]
[1755247700775,36.76955058,197.21,197.16,5.07202272]
[1755247700776,41.13028939,197.21,197.16,5.07202272]
[1755247700982,0.71,197.2,197.13,0.03]
[1755247701286,7.69846686,197.19,197.13,0.03]
[1755247701450,43.42891628,197.18,197.13,0.03]
[1755247701651,7.69846686,197.17,197.13,0.03]
[1755247701851,7.1776,197.16,197.13,0.03]
[1755247702188,5.07253728,197.14,197.13,0.03]
[1755247702582,5.78253728,197.14,197.13,0.03]
[1755247704269,12.95705638,197.14,197.13,0.03]
[1755247704470,42.95705638,197.14,197.13,0.03]
[1755247706368,12.95705638,197.14,197.13,0.03]
[1755247707079,28.06327195,197.14,197.13,0.03]
[1755247707273,28.06327195,197.14,197.09,0.03]
[1755247707274,26.0,197.11,197.09,0.03]
[1755247707461,43.23406968,197.1,197.09,0.03]
[1755247707667,43.94406968,197.1,197.09,0.03]
[1755247708368,59.05028525,197.1,197.09,0.03]
[1755247709203,226.02385196,197.1,197.09,0.03]
[1755247709401,225.50430138,197.1,197.09,0.03]
[1755247710500,209.68808581,197.1,197.09,0.03]
[1755247710674,204.6145191,197.1,197.09,0.74]
[1755247710994,197.44,197.1,197.09,0.74]
[1755247711575,167.44,197.1,197.09,0.74]
[1755247712191,172.51356671,197.1,197.09,0.03]
[1755247713278,173.18356671,197.1,197.09,0.03]
[1755247713469,172.51356671,197.1,197.09,0.03]
[1755247714284,167.44,197.1,197.09,0.03]
[1755247714491,167.44,197.1,197.09,0.74]
[1755247714685,167.44,197.1,197.09,0.03]
[1755247716897,197.44,197.1,197.09,0.03]
[1755247719181,197.44,197.1,197.09,0.74]
[1755247719386,167.44,197.1,197.09,0.74]
[1755247720286,167.44,197.1,197.09,0.03]
[1755247720679,167.44,197.1,197.09,0.74]
[1755247722815,167.44,197.1,197.09,0.03]
[1755247723003,167.44,197.1,197.09,0.74]
[1755247723196,167.44,197.1,197.09,0.03]
[1755247723509,172.51356671,197.1,197.09,0.03]
[1755247723677,41.28356671,197.1,197.09,0.03]
[1755247724101,78.44359748,197.1,197.09,0.03]
[1755247724679,93.54981305,197.1,197.09,0.03]
[1755247724879,94.06936363,197.1,197.09,0.03]
[1755247725630,94.06912924,197.1,197.09,0.03]
[1755247728308,94.06891888,197.1,197.09,0.03]
[1755247730110,106.75283567,197.1,197.02,0.71]
[1755247730306,45.10621557,197.08,197.02,0.71]
[1755247730509,43.2391366,197.07,197.02,0.71]
[1755247730711,5.07485409,197.05,197.02,0.71]
[1755247730921,36.07955058,197.04,197.02,0.71]
[1755247731416,36.07955058,197.04,197.0,0.71]
[1755247731625,36.07955058,197.04,196.97,5.07683927]
[1755247731830,41.15483659,197.04,197.01,0.71]
[1755247732122,41.15483659,197.04,197.03,0.03]
[1755247732715,71.15483659,197.04,197.03,0.03]
[1755247733935,78.9754996,197.04,197.03,0.03]
[1755247734519,48.9754996,197.04,197.03,0.03]
[1755247735217,15.10621557,197.03,196.94,0.71]
[1755247735422,43.90021359,197.02,196.94,0.71]
[1755247735732,43.90021359,197.02,196.85,12.69976004]
[1755247735733,15.10621557,196.97,196.91,0.71]
[1755247735933,39.83987242,196.96,196.91,0.71]
[1755247736142,35.56,196.95,196.91,0.71]
[1755247736738,35.56,196.95,196.91,26.71]
[1755247736921,0.51955058,196.98,196.91,26.71]
[1755247736922,35.56,196.96,196.92,0.71]
[1755247737425,35.56,196.96,196.92,5.788153]
[1755247737627,35.56,196.96,196.93,0.71]
[1755247738634,35.56,196.96,196.94,0.71]
[1755247739825,40.63719813,196.96,196.94,0.71]
[1755247740026,40.63719813,196.96,196.92,0.71]
[1755247740208,0.51955058,196.95,196.92,0.71]
[1755247740408,35.56,196.94,196.92,0.71]
[1755247740839,35.56,196.94,196.93,0.66]
[1755247743005,35.56,196.94,196.92,0.03]
[1755247743333,35.56,196.94,196.93,0.66]
[1755247744028,35.56,196.94,196.92,0.03]
[1755247745314,39.32235996,196.93,196.92,0.03]
[1755247746839,39.32235996,196.93,196.92,0.69]
[1755247747048,39.32235996,196.93,196.92,0.03]
[1755247748138,39.97235996,196.93,196.92,0.03]
[1755247748510,39.32235996,196.93,196.92,0.03]
[1755247749128,42.70903662,196.93,196.92,0.03]
[1755247749839,39.32235996,196.93,196.92,0.03]
[1755247750013,42.70856107,196.93,196.92,0.03]
[1755247752346,3.76235996,196.93,196.92,0.69]
[1755247753332,35.58,196.94,196.92,0.69]
[1755247753740,35.58,196.94,196.93,0.66]
[1755247753952,39.34418108,196.94,196.93,0.66]
[1755247754129,39.34418108,196.94,196.93,5.73794647]
[1755247754645,39.34418108,196.94,196.93,0.66]
[1755247756133,35.58,196.94,196.93,0.66]
[1755247756439,35.58,196.94,196.93,5.73794647]
[1755247759940,131.9,196.97,196.93,5.73794647]
[1755247760244,35.58,196.97,196.93,5.73794647]
[1755247760432,35.58,196.97,196.94,0.66]
[1755247760750,36.23,196.97,196.94,0.66]
[1755247760923,35.58,196.97,196.94,0.66]
[1755247761544,35.58,196.97,196.94,5.73756372]
[1755247761740,35.58,196.97,196.95,0.66]
[1755247762643,0.65,196.96,196.92,0.03]